[Event "Seniors-LEM-50 Sachsen-Anhalt 2024"]
[Site "Magdeburg"]
[Date "2024.07.05"]
[Round "5.3"]
[White "Korte, Markus"]
[Black "Ackermann, Robert"]
[Result "1/2-1/2"]
[ECO "C54"]
[WhiteElo "1895"]
[BlackElo "2041"]
[Annotator "NA RC"]
[PlyCount "86"]
[EventDate "2024.06.25"]
[EventType "swiss"]
[EventCountry "GER"]
[SourceTitle "playchess.com"]
[Source "ChessBase"]
[SourceQuality "1"]
[TimeControl "40/5400+30:1800+30"]

1. e4 {[%emt 0:00:08]} e5 {[%emt 0:00:36]} 2. Nf3 {[%emt 0:00:06]} Nc6 {[%emt 0:00:19]} 3. Bc4 {[%emt 0:00:35]} Nf6 {[%emt 0:00:23]} 4. d3 {[%emt 0:00:07]} Bc5 {[%emt 0:00:23]} 5. O-O {[%emt 0:00:18]} d6 {[%emt 0:00:27]} 6. c3 {[%emt 0:00:10]} Bb6 {[%emt 0:00:12]} 7. Be3 {[%emt 0:04:53]} O-O {[%emt 0:00:28]} 8. Nbd2 {[%emt 0:08:45]} h6 {[%emt 0:01:12]} 9. h3 {[%emt 0:03:47]} Be6 {[%emt 0:01:07]} 10. Re1 {[%emt 0:07:32]} Bxe3 {[%emt 0:03:27]} 11. Rxe3 {[%emt 0:03:14]} Qd7 {[%emt 0:03:25]} 12. d4 {[%emt 0:02:23]} Bxc4 {[%emt 0:02:32]} 13. Nxc4 {[%emt 0:00:38]} exd4 {[%emt 0:00:37]} 14. cxd4 {[%emt 0:00:46]} Rfe8 {[%emt 0:00:37]} 15. d5 {[%emt 0:11:18]} Ne7 {[%emt 0:02:18]} 16. Qd4 {[%emt 0:06:54]} Ng6 {[%emt 0:00:38]} 17. Rd1 {[%emt 0:02:13]} a6 {[%emt 0:02:58]} 18. e5 {[%emt 0:02:11]} dxe5 {[%emt 0:00:55]} 19. Nfxe5 {[%emt 0:01:11]} Nxe5 {[%emt 0:00:41]} 20. Nxe5 {[%emt 0:00:56]} Qf5 {[%emt 0:03:47]} 21. Rde1 {[%emt 0:09:10]} Rad8 {[%emt 0:02:42]} 22. Ng4 {[%emt 0:11:08]} Rxe3 {[%emt 0:02:27]} 23. Nxe3 {[%emt 0:04:21]} Qd7 {[%emt 0:02:23]} 24. g4 {[%emt 0:06:05]} c6 {[%emt 0:03:39]} 25. Nf5 {[%emt 0:01:13]} cxd5 {[%emt 0:29:47]} 26. Nxh6+ {[%emt 0:00:09]} Kf8 {[%emt 0:06:42]} 27. Nf5 {[%emt 0:05:26]} Re8 {[%emt 0:04:29]} 28. Rxe8+ {[%emt 0:03:45]} Nxe8 {[%emt 0:02:03]} 29. Qc5+ {[%emt 0:00:47]} Kg8 {[%emt 0:00:29]} 30. Ne7+ {[%emt 0:00:14]} Kh8 {[%emt 0:00:27]} 31. Nxd5 {[%emt 0:00:44]} Qe6 {[%emt 0:01:37]} 32. Nf4 {[%emt 0:03:04]} Qe1+ {[%emt 0:00:44]} 33. Kh2 {[%emt 0:00:09]} Kg8 {[%emt 0:01:32]} 34. Nd5 {[%emt 0:00:33]} Qe5+ {[%emt 0:00:26]} 35. Kg2 {[%emt 0:00:24]} Qe4+ {[%emt 0:00:32]} 36. Kg3 {[%emt 0:00:46]} Qe5+ {[%emt 0:03:39]} 37. f4 {[%emt 0:01:02]} Qxb2 {[%emt 0:06:21]} 38. Qe7 {[%emt 0:00:41]} Qb5 {[%emt 0:00:36]} 39. Qe5 {[%emt 0:01:19]} Qd3+ {[%emt 0:02:01]} 40. Kh4 {[%emt 0:00:30]} Qh7+ {[%emt 0:00:36]} 41. Kg3 {[%emt 0:30:14]} Qd3+ {[%emt 0:30:16]} 42. Kh4 {[%emt 0:00:00]} Qh7+ {[%emt 0:00:00]} 43. Kg3 {[%emt 0:00:00]} Qd3+ {[%emt 0:00:00]} 1/2-1/2

[Event "Seniors-LEM-50 Sachsen-Anhalt 2024"]
[Site "Magdeburg"]
[Date "2024.07.05"]
[Round "5.4"]
[White "Puschendorf, Steffen"]
[Black "Mitschka, Manfred"]
[Result "1-0"]
[ECO "A40"]
[WhiteElo "2067"]
[BlackElo "1863"]
[Annotator "NA RC"]
[PlyCount "107"]
[EventDate "2024.06.25"]
[EventType "swiss"]
[EventCountry "GER"]
[SourceTitle "playchess.com"]
[Source "ChessBase"]
[SourceQuality "1"]
[TimeControl "40/5400+30:1800+30"]

1. d4 {[%emt 0:00:01]} e6 {[%emt 0:00:10]} 2. c4 {[%emt 0:00:32]} b6 {[%emt 0:00:07]} 3. a3 {[%emt 0:00:24]} Bb7 {[%emt 0:00:17]} 4. Nc3 {[%emt 0:00:18]} f5 {[%emt 0:00:24]} 5. Nh3 {[%emt 0:02:20]} Nf6 {[%emt 0:01:19]} 6. f3 {[%emt 0:00:51] A40: Unusual replies to 1 d4.} d5 {[%emt 0:05:29]} 7. e3 {[%emt 0:02:35]} c5 {[%emt 0:02:47]} 8. Nf4 {[%emt 0:05:34]} Qd7 {[%emt 0:03:10]} 9. cxd5 {[%emt 0:07:25]} exd5 {[%emt 0:01:46]} 10. Bb5 {[%emt 0:02:54]} Bc6 {[%emt 0:04:32]} 11. Bxc6 {[%emt 0:04:13]} Nxc6 {[%emt 0:00:39]} 12. O-O {[%emt 0:03:58]} Rd8 {[%emt 0:08:42] [#]} 13. e4 $1 {[%emt 0:12:58]} Nxd4 {[%emt 0:11:57]} 14. Nfxd5 {[%emt 0:14:36]} Nxd5 {[%emt 0:05:31]} 15. Nxd5 {[%emt 0:04:13]} Be7 {[%emt 0:04:17]} 16. Be3 {[%emt 0:02:47]} O-O {[%emt 0:02:27]} 17. Bxd4 {[%emt 0:02:06]} cxd4 {[%emt 0:00:24]} 18. Rc1 {[%emt 0:00:59]} Bd6 {[%emt 0:04:30]} 19. Qd3 {[%emt 0:06:51]} fxe4 {[%emt 0:04:25]} 20. fxe4 {[%emt 0:00:38]} Qe6 {[%emt 0:05:52]} 21. g3 $11 {[%emt 0:04:44]} (21. Qxd4 $2 {loses.} Qh6 22. g3 Rxf1+ 23. Kxf1 Qxc1+ $19) 21... Rxf1+ {[%emt 0:06:51]} 22. Rxf1 {[%emt 0:01:30]} Re8 {[%emt 0:01:19]} 23. Re1 {[%emt 0:02:10]} Rf8 {[%emt 0:03:38]} 24. Kg2 {[%emt 0:02:24]} Be5 {[%emt 0:02:15]} 25. Rf1 {[%emt 0:04:02]} Rxf1 {[%emt 0:02:25]} 26. Qxf1 {[%emt 0:01:21]} h5 {[%emt 0:00:52]} 27. b3 {[%emt 0:02:02]} h4 {[%emt 0:01:46]} 28. Qf5 {[%emt 0:01:37]} Qxf5 {[%emt 0:02:25]} 29. exf5 {[%emt 0:00:12]} hxg3 {[%emt 0:01:09]} 30. hxg3 {[%emt 0:00:02]} Kf7 {[%emt 0:03:41]} 31. g4 {[%emt 0:00:47]} g6 {[%emt 0:01:14]} 32. Kf3 {[%emt 0:00:38]} gxf5 {[%emt 0:03:06]} 33. gxf5 {[%emt 0:00:02]} Bd6 {[%emt 0:01:20]} 34. a4 {[%emt 0:01:05]} Bf8 {[%emt 0:01:11]} 35. Ke4 {[%emt 0:00:44]} Bg7 {[%emt 0:00:43]} 36. b4 {[%emt 0:02:25]} Ke8 {[%emt 0:02:36]} 37. f6 {[%emt 0:01:20]} Bf8 {[%emt 0:00:17]} 38. Kxd4 {[%emt 0:00:14]} Kd7 {[%emt 0:00:13]} 39. b5 {[%emt 0:03:39]} Ke6 {[%emt 0:01:08]} 40. Ke4 {[%emt 0:01:02]} Bd6 {[%emt 0:00:46]} 41. Kd4 {[%emt 0:32:04]} Bc5+ {[%emt 0:30:49]} 42. Kc4 {[%emt 0:00:00]} Bd6 {[%emt 0:00:00]} 43. Kd4 {[%emt 0:00:00]} Bc5+ {[%emt 0:00:00]} 44. Ke4 {[%emt 0:00:00]} Bd6 {[%emt 0:00:00]} 45. Ne3 {[%emt 0:00:00]} Bc5 {[%emt 0:00:00]} 46. Nc4 {[%emt 0:00:00]} Bb4 {[%emt 0:00:00]} 47. Ne5 {[%emt 0:00:00]} Kxf6 {[%emt 0:00:00]} 48. Kd5 {[%emt 0:00:00]} Bc5 {[%emt 0:00:00]} 49. Nc6 {[%emt 0:00:00]} Kf7 {[%emt 0:00:00]} 50. Nxa7 {[%emt 0:00:00]} Ke7 {[%emt 0:00:00]} 51. Kc6 {[%emt 0:00:00]} Kd8 {[%emt 0:00:00]} 52. a5 {[%emt 0:00:00]} bxa5 {[%emt 0:00:00]} 53. Kxc5 {[%emt 0:00:00]} Kc7 {[%emt 0:00:00]} 54. Nc6 {[%emt 0:00:00]} 1-0

[Event "Seniors-LEM-50 Sachsen-Anhalt 2024"]
[Site "Magdeburg"]
[Date "2024.07.05"]
[Round "5.5"]
[White "Klanten, Christoph"]
[Black "Wirp, Hans-Werner"]
[Result "1-0"]
[ECO "C29"]
[WhiteElo "1968"]
[BlackElo "1841"]
[Annotator "NA RC"]
[PlyCount "107"]
[EventDate "2024.06.25"]
[EventType "swiss"]
[EventCountry "GER"]
[SourceTitle "playchess.com"]
[Source "ChessBase"]
[SourceQuality "1"]
[TimeControl "40/5400+30:1800+30"]

1. e4 {[%emt 0:00:03]} e5 {[%emt 0:01:04]} 2. Nc3 {[%emt 0:00:08]} Nf6 {[%emt 0:01:17]} 3. f4 {[%emt 0:00:07]} d5 {[%emt 0:01:00]} 4. fxe5 {[%emt 0:00:10]} Nxe4 {[%emt 0:01:06]} 5. Nf3 {[%emt 0:00:06]} Bg4 {[%emt 0:03:39]} 6. Qe2 {[%emt 0:00:09]} Nxc3 {[%emt 0:00:18]} 7. dxc3 {[%emt 0:00:29]} Bxf3 {[%emt 0:00:14] C29: Vienna Game: 2...Nf6 3 f4.} 8. Qxf3 {[%emt 0:02:53]} Qh4+ {[%emt 0:09:38]} 9. g3 {[%emt 0:00:42]} Qe4+ {[%emt 0:00:21]} 10. Qxe4 {[%emt 0:01:20]} dxe4 {[%emt 0:00:29]} 11. Bg2 {[%emt 0:04:03]} Nd7 {[%emt 0:01:34]} 12. Bf4 {[%emt 0:03:04]} O-O-O {[%emt 0:00:55]} 13. O-O-O {[%emt 0:01:18]} Be7 {[%emt 0:09:26]} 14. Bh3 {[%emt 0:08:00]} g5 {[%emt 0:03:30]} 15. Be3 {[%emt 0:00:18]} h5 {[%emt 0:00:43]} 16. Bf5 {[%emt 0:02:45]} f6 {[%emt 0:07:08]} 17. Rd2 {[%emt 0:04:03]} ({Don't take} 17. Bxe4 $6 Nxe5 18. Rxd8+ (18. Bxa7 b6 $14) 18... Bxd8 $14) (17. exf6 $18 Bxf6 18. Rhf1 (18. Bxe4 $2 {perishes.} Rhe8 $19) (18. Bxa7 b6 $16)) 17... fxe5 {[%emt 0:01:44]} 18. Rhd1 {[%emt 0:00:14]} Bd6 {[%emt 0:02:27]} 19. Bxg5 {[%emt 0:06:57]} Rdf8 {[%emt 0:07:52]} 20. Rf1 {[%emt 0:02:46]} Rhg8 {[%emt 0:03:54]} 21. Be3 {[%emt 0:04:01]} Kb8 {[%emt 0:00:18]} 22. Rdf2 {[%emt 0:03:08]} Nb6 {[%emt 0:01:35]} 23. Bxe4 {[%emt 0:07:01]} Nd7 {[%emt 0:10:00]} 24. Rxf8+ {[%emt 0:03:14]} Nxf8 {[%emt 0:05:32]} 25. Bf5 {[%emt 0:08:19]} b6 {[%emt 0:04:09]} 26. Kd2 {[%emt 0:01:07]} Kb7 {[%emt 0:05:18]} 27. Kd3 $18 {[%emt 0:01:56]} Kc6 {[%emt 0:00:15]} 28. a4 {[%emt 0:03:18]} a5 {[%emt 0:00:42]} 29. Kc4 {[%emt 0:02:53]} Ng6 {[%emt 0:02:36]} 30. Be6 {[%emt 0:05:01]} Rh8 {[%emt 0:05:27]} 31. Rf7 {[%emt 0:03:32]} Kb7 {[%emt 0:01:43]} 32. Rg7 {[%emt 0:05:38]} Ne7 {[%emt 0:01:01]} 33. Bg5 {[%emt 0:00:58]} Nc8 {[%emt 0:00:10]} 34. Rg8 {[%emt 0:03:00]} Rxg8 {[%emt 0:02:17]} 35. Bxg8 {[%emt 0:00:03]} Ne7 {[%emt 0:00:28]} 36. Bf7 {[%emt 0:00:51]} Nf5 {[%emt 0:02:32]} 37. Bxh5 {[%emt 0:01:18]} e4 {[%emt 0:00:10]} 38. Bg6 {[%emt 0:01:45]} Nxg3 {[%emt 0:00:33]} 39. hxg3 {[%emt 0:00:39]} Bxg3 {[%emt 0:00:02]} 40. Bxe4+ {[%emt 0:00:22]} c6 {[%emt 0:00:12]} 41. b4 {[%emt 0:31:30]} axb4 {[%emt 0:10:17]} 42. cxb4 {[%emt 0:00:00]} Kc7 {[%emt 0:01:57]} 43. Be3 {[%emt 0:00:00]} Bd6 {[%emt 0:05:43]} 44. b5 {[%emt 0:00:00]} c5 {[%emt 0:00:50]} 45. Kd5 {[%emt 0:00:00]} Bf8 {[%emt 0:00:42]} 46. Bf4+ {[%emt 0:00:00]} Kb7 {[%emt 0:00:30]} 47. Bf5 {[%emt 0:00:00]} Bg7 {[%emt 0:00:31]} 48. Kd6 {[%emt 0:00:00]} Bc3 {[%emt 0:00:17]} 49. Be4+ {[%emt 0:00:00]} Ka7 {[%emt 0:00:08]} 50. Be5 {[%emt 0:00:00]} Bd2 {[%emt 0:00:34]} 51. Kc6 {[%emt 0:00:00]} Be3 {[%emt 0:00:08]} 52. a5 {[%emt 0:00:00]} c4 {[%emt 0:02:40]} 53. axb6+ {[%emt 0:00:00]} Bxb6 {[%emt 0:00:23]} 54. Bb8+ {[%emt 0:00:00]} 1-0

[Event "Seniors-LEM-50 Sachsen-Anhalt 2024"]
[Site "Magdeburg"]
[Date "2024.07.05"]
[Round "5.6"]
[White "Ahrens, Gunnar"]
[Black "Frankenberger, Ralf"]
[Result "1/2-1/2"]
[ECO "A03"]
[WhiteElo "1750"]
[BlackElo "1939"]
[Annotator "NA RC"]
[PlyCount "95"]
[EventDate "2024.06.25"]
[EventType "swiss"]
[EventCountry "GER"]
[SourceTitle "playchess.com"]
[Source "ChessBase"]
[SourceQuality "1"]
[TimeControl "40/5400+30:1800+30"]

1. f4 {[%emt 0:00:06]} d5 {[%emt 0:00:14]} 2. Nf3 {[%emt 0:00:05]} e6 {[%emt 0:01:11]} 3. e3 {[%emt 0:00:22]} c5 {[%emt 0:01:45]} 4. b3 {[%emt 0:00:29]} Bd6 {[%emt 0:04:13]} 5. Bb2 {[%emt 0:00:29]} Nf6 {[%emt 0:00:06]} 6. Be2 {[%emt 0:05:06]} O-O {[%emt 0:01:01]} 7. O-O {[%emt 0:01:06]} Nc6 {[%emt 0:01:38]} 8. Ne5 {[%emt 0:04:13] 8.Ne5 scores better than 8.Qe1.} Qc7 {[%emt 0:00:56] A03: Bird's Opening with 1...d5.} 9. Nxc6 {[%emt 0:03:37]} Qxc6 {[%emt 0:00:22]} 10. a4 $146 {[%emt 0:05:45]} ({Predecessor:} 10. Bxf6 gxf6 11. Qe1 f5 12. Qh4 Kh8 13. Qf6+ Kg8 14. Rf3 Re8 15. Qh6 Kh8 16. Rg3 {1-0 Bryakin,M (2467)-Blokhin,S (2009) Titled Tuesday intern op 02nd Apr Early blitz 2024 (6)}) 10... b6 {[%emt 0:03:08]} 11. Bxf6 {[%emt 0:06:21]} gxf6 {[%emt 0:00:02]} 12. Bb5 {[%emt 0:06:47]} Qc7 {[%emt 0:00:10]} 13. Qh5 {[%emt 0:00:44]} Kh8 {[%emt 0:02:54]} 14. Bd3 {[%emt 0:02:48]} f5 {[%emt 0:00:14]} 15. Nc3 {[%emt 0:01:30]} a6 {[%emt 0:04:25]} 16. Rf3 {[%emt 0:01:23]} Rg8 {[%emt 0:01:50]} 17. Rh3 {[%emt 0:05:12]} Rg7 {[%emt 0:09:01]} 18. Rg3 {[%emt 0:09:42]} Rxg3 {[%emt 0:11:02]} 19. hxg3 {[%emt 0:00:06]} f6 {[%emt 0:00:15] [#]} 20. Bxf5 $2 {[%emt 0:07:27]} exf5 {[%emt 0:02:08]} 21. Qe8+ {[%emt 0:00:23]} Kg7 {[%emt 0:00:46]} 22. Nxd5 {[%emt 0:00:55]} Qb7 {[%emt 0:02:40]} 23. c4 {[%emt 0:00:32]} Bd7 {[%emt 0:01:21]} 24. Qh5 {[%emt 0:00:22]} Be6 {[%emt 0:03:14]} 25. Qf3 {[%emt 0:03:23]} Bxd5 {[%emt 0:11:18]} 26. cxd5 {[%emt 0:00:47]} b5 $19 {[%emt 0:05:09]} 27. axb5 {[%emt 0:02:10]} axb5 {[%emt 0:00:32]} 28. Rxa8 {[%emt 0:00:46]} Qxa8 {[%emt 0:00:01]} 29. Qe2 {[%emt 0:02:48]} Qa5 {[%emt 0:05:22]} 30. d3 {[%emt 0:02:05]} Qc3 {[%emt 0:03:54]} 31. e4 {[%emt 0:04:04]} b4 {[%emt 0:09:26]} 32. Kh2 {[%emt 0:02:41]} Qxb3 {[%emt 0:01:16]} 33. e5 {[%emt 0:00:25]} fxe5 {[%emt 0:03:16]} 34. fxe5 {[%emt 0:00:02]} Qxd5 {[%emt 0:00:17]} 35. exd6 {[%emt 0:00:17]} Qxd6 {[%emt 0:00:37]} 36. Qb2+ {[%emt 0:00:23]} Kg6 {[%emt 0:00:15]} 37. Qb3 {[%emt 0:00:40]} Kf6 {[%emt 0:02:08]} 38. Qc4 {[%emt 0:01:47]} Ke7 {[%emt 0:03:53]} 39. Qh4+ {[%emt 0:01:01]} Ke6 {[%emt 0:02:16]} 40. Qh6+ {[%emt 0:04:20]} Ke5 {[%emt 0:03:39]} 41. Qf4+ {[%emt 0:30:25]} Ke6 {[%emt 0:32:11]} 42. Qh6+ {[%emt 0:00:20]} Kd5 {[%emt 0:00:25]} 43. Qc1 {[%emt 0:18:06]} Kd4 {[%emt 0:00:00]} 44. Qc4+ {[%emt 0:00:00]} Ke3 {[%emt 0:00:00]} 45. Qc1+ {[%emt 0:00:00]} Kd4 {[%emt 0:00:00]} 46. Qc4+ {[%emt 0:00:00]} Ke5 {[%emt 0:00:00]} 47. Qf4+ {[%emt 0:00:00]} Kd5 {[%emt 0:03:29]} 48. Qh6 {[%emt 0:02:30]} 1/2-1/2

[Event "Seniors-LEM-50 Sachsen-Anhalt 2024"]
[Site "Magdeburg"]
[Date "2024.07.05"]
[Round "5.7"]
[White "Weitz, Andreas"]
[Black "Janeke, Thomas"]
[Result "1/2-1/2"]
[ECO "A52"]
[WhiteElo "1936"]
[BlackElo "1764"]
[Annotator "RC"]
[PlyCount "86"]
[EventDate "2024.06.25"]
[EventType "swiss"]
[EventCountry "GER"]
[SourceTitle "playchess.com"]
[Source "ChessBase"]
[SourceQuality "1"]
[TimeControl "40/5400+30:1800+30"]

1. d4 {[%emt 0:00:00]} Nf6 {[%emt 0:00:13]} 2. c4 {[%emt 0:00:07]} e5 {[%emt 0:00:10]} 3. dxe5 {[%emt 1:31:53]} Ng4 {[%emt 1:31:37]} 4. Nf3 {[%emt 0:00:00]} Bc5 {[%emt 0:00:00]} 5. e3 {[%emt 0:00:00]} Nc6 {[%emt 0:00:00]} 6. a3 {[%emt 0:00:00]} a5 {[%emt 0:00:00]} 7. Nc3 {[%emt 0:00:00]} O-O {[%emt 0:00:00]} 8. Be2 {[%emt 0:00:00]} Re8 {[%emt 0:00:00]} 9. O-O {[%emt 0:00:00]} Ngxe5 {[%emt 0:00:00]} 10. Nxe5 {[%emt 0:00:00]} Nxe5 {[%emt 0:00:00]} 11. Na4 {[%emt 0:00:00]} Bf8 {[%emt 0:00:00]} 12. b3 {[%emt 0:00:00]} Ra6 {[%emt 0:00:00]} 13. f4 {[%emt 0:00:00]} Rd6 {[%emt 0:00:00]} 14. Qc2 {[%emt 0:00:00]} Nc6 {[%emt 0:00:00]} 15. g3 {[%emt 0:00:00]} Rde6 {[%emt 0:00:00]} 16. Bf3 {[%emt 0:00:00]} Qf6 {[%emt 0:00:00]} 17. Bb2 {[%emt 0:00:00]} Qh6 {[%emt 0:00:00]} 18. e4 {[%emt 0:00:00]} d6 {[%emt 0:00:00]} 19. Rad1 {[%emt 0:00:00]} Qh3 {[%emt 0:00:00]} 20. Qg2 {[%emt 0:00:00]} Qxg2+ {[%emt 0:00:00]} 21. Kxg2 {[%emt 0:00:00]} Rh6 {[%emt 0:00:00]} 22. h4 {[%emt 0:00:00]} Rhe6 {[%emt 0:00:00]} 23. Nc3 {[%emt 0:00:00]} R6e7 {[%emt 0:00:00]} 24. Nd5 {[%emt 0:00:00]} Rd7 {[%emt 0:00:00]} 25. Rfe1 {[%emt 0:00:00]} Ne7 {[%emt 0:00:00]} 26. Ne3 {[%emt 0:00:00]} g6 {[%emt 0:00:00]} 27. f5 {[%emt 0:00:00]} Nc6 {[%emt 0:00:00]} 28. Nd5 {[%emt 0:00:00]} Be7 {[%emt 0:00:00]} 29. f6 {[%emt 0:00:00]} Bf8 {[%emt 0:00:00]} 30. g4 {[%emt 0:00:00]} Ne5 {[%emt 0:00:00]} 31. Be2 {[%emt 0:00:00]} c6 {[%emt 0:00:00]} 32. Ne3 {[%emt 0:00:00]} Rdd8 {[%emt 0:00:00]} 33. Rd2 {[%emt 0:00:00]} Bh6 {[%emt 0:00:00]} 34. g5 {[%emt 0:00:00]} Bf8 {[%emt 0:00:00]} 35. Red1 {[%emt 0:00:00]} Nd7 {[%emt 0:00:00]} 36. Bf3 {[%emt 0:00:00]} Nc5 {[%emt 0:00:00]} 37. b4 {[%emt 0:00:00]} axb4 {[%emt 0:00:00]} 38. axb4 {[%emt 0:00:00]} Nxe4 {[%emt 0:00:00]} 39. Re2 {[%emt 0:00:00]} d5 {[%emt 0:00:00]} 40. cxd5 {[%emt 0:00:00]} Bxb4 {[%emt 0:00:00]} 41. Nc2 {[%emt 0:27:15]} Nc3 {[%emt 0:24:16]} 42. Rxe8+ {[%emt 0:00:14]} Rxe8 {[%emt 0:00:17]} 43. Bxc3 {[%emt 0:01:19]} Bxc3 {[%emt 0:00:07]} 1/2-1/2

[Event "Seniors-LEM-50 Sachsen-Anhalt 2024"]
[Site "Magdeburg"]
[Date "2024.07.05"]
[Round "5.8"]
[White "Richter, Juergen"]
[Black "Dannhauer, Frank"]
[Result "1/2-1/2"]
[ECO "B20"]
[WhiteElo "1841"]
[BlackElo "1921"]
[Annotator "NA RC"]
[PlyCount "117"]
[EventDate "2024.06.25"]
[EventType "swiss"]
[EventCountry "GER"]
[SourceTitle "playchess.com"]
[Source "ChessBase"]
[SourceQuality "1"]
[TimeControl "40/5400+30:1800+30"]

1. e4 {[%emt 0:00:04]} c5 {[%emt 0:00:10]} 2. c4 {[%emt 0:00:06]} Nc6 {[%emt 0:00:07]} 3. d3 {[%emt 0:00:08]} Nf6 {[%emt 0:00:28]} 4. g3 {[%emt 0:00:45]} e6 {[%emt 0:00:11]} 5. Bg2 {[%emt 0:00:05]} d5 {[%emt 0:01:01]} 6. cxd5 {[%emt 0:03:44] B20: Sicilian: Unusual White 2nd moves.} exd5 {[%emt 0:00:22]} 7. exd5 {[%emt 0:05:49]} Nxd5 {[%emt 0:04:11]} 8. Qe2+ {[%emt 0:00:24]} Be6 {[%emt 0:01:14]} 9. a3 {[%emt 0:00:55]} Nd4 {[%emt 0:03:01]} 10. Qd1 {[%emt 0:00:27]} Qa5+ {[%emt 0:02:51]} 11. Bd2 {[%emt 0:02:49]} Nb4 {[%emt 0:05:23]} 12. Bxb4 {[%emt 0:00:50]} cxb4 {[%emt 0:00:17]} 13. Kf1 {[%emt 0:02:54]} Rc8 {[%emt 0:15:30]} 14. Nd2 {[%emt 0:00:53]} bxa3 {[%emt 0:00:30]} 15. bxa3 {[%emt 0:00:52]} Rc3 {[%emt 0:25:52]} ({Don't take} 15... Bxa3 16. Bxb7 Rc3 17. Nc4 $17) 16. Ne4 {[%emt 0:02:49]} Rxa3 {[%emt 0:00:51]} 17. Rxa3 {[%emt 0:03:09]} Qxa3 {[%emt 0:00:40]} 18. Ng5 {[%emt 0:02:45]} Bb3 {[%emt 0:03:56]} 19. Qe1+ {[%emt 0:00:19]} Be7 {[%emt 0:03:31]} 20. Bxb7 {[%emt 0:00:25]} h6 {[%emt 0:08:54]} (20... O-O $17 21. N5f3 Ne6) 21. Qe4 {[%emt 0:00:49]} Qc5 {[%emt 0:06:29]} 22. N1f3 {[%emt 0:00:48]} Nxf3 {[%emt 0:00:58]} 23. Nxf3 {[%emt 0:06:05]} O-O {[%emt 0:03:20]} 24. d4 {[%emt 0:00:03]} Qc7 {[%emt 0:04:26]} 25. Kg2 {[%emt 0:00:12]} a5 {[%emt 0:01:02]} 26. Nd2 {[%emt 0:02:25]} Bc2 {[%emt 0:00:23]} 27. Qc6 {[%emt 0:01:13]} Qxc6+ {[%emt 0:00:28]} 28. Bxc6 {[%emt 0:00:08]} Rd8 {[%emt 0:00:04]} 29. d5 {[%emt 0:01:17]} Bb4 {[%emt 0:00:58]} 30. Rc1 {[%emt 0:00:36]} Bd3 {[%emt 0:00:42]} 31. Rd1 {[%emt 0:00:30]} Be2 {[%emt 0:01:21]} 32. Re1 {[%emt 0:00:15]} Bc4 {[%emt 0:00:30]} 33. Nxc4 {[%emt 0:03:49]} Bxe1 {[%emt 0:00:11]} 34. d6 {[%emt 0:00:12]} Bb4 {[%emt 0:00:15]} 35. d7 $19 {[%emt 0:02:06]} Kf8 {[%emt 0:00:31]} 36. Kf3 {[%emt 0:00:27]} Ke7 {[%emt 0:00:17]} 37. Nb6 {[%emt 0:01:45]} Rb8 {[%emt 0:03:29]} 38. Nc4 {[%emt 0:00:59]} Bc3 {[%emt 0:01:12]} 39. Ke4 {[%emt 0:00:46]} Rb4 {[%emt 0:02:26]} 40. Kd3 {[%emt 0:01:14]} Bf6 {[%emt 0:00:24]} 41. Nxa5 {[%emt 0:30:24]} Kd6 {[%emt 0:03:01]} 42. h4 {[%emt 0:00:00]} Bd8 {[%emt 0:01:06]} 43. Nb7+ {[%emt 0:00:00]} Kc7 {[%emt 0:07:48]} 44. Nxd8 {[%emt 0:00:00]} Kxd8 {[%emt 0:00:18]} 45. Bd5 {[%emt 0:00:00]} Rb6 {[%emt 0:02:46]} 46. Bxf7 {[%emt 0:00:00]} Rf6 {[%emt 0:00:07]} 47. Be8 {[%emt 0:00:00]} Rxf2 {[%emt 0:00:06]} 48. Ke3 {[%emt 0:00:00]} Rf6 {[%emt 0:01:09]} 49. h5 {[%emt 0:00:00]} Ke7 {[%emt 0:00:24]} 50. Ke4 {[%emt 0:00:00]} Rf1 {[%emt 0:02:25]} 51. Ke3 {[%emt 0:00:00]} Rd1 {[%emt 0:00:27]} 52. Ke4 {[%emt 0:00:00]} Kf6 {[%emt 0:00:14]} 53. Kf4 {[%emt 0:00:00]} Rd4+ {[%emt 0:00:39]} 54. Ke3 {[%emt 0:00:00]} Ke5 {[%emt 0:00:27]} 55. Kf3 {[%emt 0:00:00]} Kf5 {[%emt 0:01:57]} 56. Bg6+ {[%emt 0:00:00]} Kg5 {[%emt 0:00:21]} 57. Be8 {[%emt 0:00:00]} Rd6 {[%emt 0:00:17]} 58. Ke4 {[%emt 0:00:00]} Kf6 {[%emt 0:02:59]} 59. Kf4 {[%emt 0:00:00]} 1/2-1/2

[Event "Seniors-LEM-50 Sachsen-Anhalt 2024"]
[Site "Magdeburg"]
[Date "2024.07.05"]
[Round "5.9"]
[White "Hencke, Heiko"]
[Black "Anderberg, Peter"]
[Result "1/2-1/2"]
[ECO "A29"]
[WhiteElo "1855"]
[BlackElo "1909"]
[Annotator "NA RC"]
[PlyCount "60"]
[EventDate "2024.06.25"]
[EventType "swiss"]
[EventCountry "GER"]
[SourceTitle "playchess.com"]
[Source "ChessBase"]
[SourceQuality "1"]
[TimeControl "40/5400+30:1800+30"]

1. c4 {[%emt 0:00:01]} e5 {[%emt 0:02:09]} 2. Nc3 {[%emt 0:00:21]} Nf6 {[%emt 0:00:11]} 3. g3 {[%emt 0:00:19]} Nc6 {[%emt 0:05:42]} 4. Bg2 {[%emt 0:00:27]} g6 {[%emt 0:00:14]} 5. Nf3 {[%emt 0:01:43]} Bg7 {[%emt 0:00:05]} 6. O-O {[%emt 0:00:49]} O-O {[%emt 0:00:02]} 7. d4 {[%emt 0:02:58]} exd4 {[%emt 0:08:52]} 8. Nxd4 {[%emt 0:00:32]} Re8 {[%emt 0:04:43]} 9. Be3 {[%emt 0:08:07] A29: English Opening: Four Knights Variation with 4 g3.} Ng4 {[%emt 0:08:29]} 10. Nxc6 {[%emt 0:03:31]} Nxe3 {[%emt 0:00:15]} 11. Nxd8 {[%emt 0:00:44]} Nxd1 {[%emt 0:00:06]} 12. Nb5 {[%emt 0:08:32]} Rxd8 {[%emt 0:07:14]} 13. Nxc7 {[%emt 0:00:51]} Rb8 {[%emt 0:05:47]} (13... Nxf2 $14 14. Nxa8 Ng4) 14. Rfxd1 {[%emt 0:02:16]} (14. Raxd1 Bxb2 15. Rd5 Bf6) 14... Bxb2 {[%emt 0:16:55]} 15. Rab1 {[%emt 0:00:27]} Be5 {[%emt 0:02:28]} 16. Nd5 {[%emt 0:03:28]} Kf8 {[%emt 0:07:31]} 17. f4 {[%emt 0:01:00]} (17. c5 $16) 17... Bd6 $1 {[%emt 0:02:23]} 18. Kf1 {[%emt 0:04:22]} Bc5 {[%emt 0:03:15]} 19. Nf6 {[%emt 0:02:06]} Kg7 {[%emt 0:06:14]} 20. Ne4 {[%emt 0:00:25]} Be7 {[%emt 0:00:44]} 21. Nd6 {[%emt 0:00:50]} Bxd6 {[%emt 0:02:05]} 22. Rxd6 {[%emt 0:00:13]} Kf8 {[%emt 0:04:13]} 23. e4 {[%emt 0:01:21]} b6 {[%emt 0:02:17]} 24. c5 {[%emt 0:02:05]} Ba6+ {[%emt 0:01:44]} 25. Kf2 {[%emt 0:00:15]} Bc4 {[%emt 0:00:23]} 26. cxb6 {[%emt 0:00:41]} Rxb6 {[%emt 0:00:38]} 27. Rbxb6 $11 {[%emt 0:01:55]} axb6 {[%emt 0:00:04]} 28. Rxb6 {[%emt 0:03:30]} Bxa2 {[%emt 0:00:10]} 29. e5 {[%emt 0:00:31]} Rc8 {[%emt 0:01:22]} 30. Rb2 {[%emt 0:01:12]} Be6 {[%emt 0:09:15]} 1/2-1/2